Cogmind - Beta 15 @@@ ROGUE MODE // 2025.08.14 @ 17:28:17 Player: Tuja Result: Destroyed by G-34 Mercenary with Small Laser Performance ------------- Evolutions (1) 500 Regions Visited (3) 600 Robots Destroyed (68) 340 Value Destroyed (1448) 1448 Prototype IDs (0) 0 Alien Tech Used (0) 0 Bonus (0) 0 TOTAL SCORE: 2888 Bonus ------- None Cogmind --------- Core Integrity 0/400 Matter 263/300 Energy 81/100 System Corruption 0% Temperature Warm (102) Movement Core (1500) Ox29 Location -9/Storage Parts ------- > --- POWER (1) -------- (None) > --- PROPULSION (2) --- (None) > --- UTILITY (4) ------ Huge Storage Unit Visual Processing Unit Core Shielding Light Armor Plating > --- WEAPON (2) ------- Spread Laser Shotgun > --- INVENTORY (25) --- Improved Aluminum Leg Improved Aluminum Leg Improved Flight Unit Improved Flight Unit Improved Flight Unit Heat Sink Heat Sink Cooling System Medium Matter Pod (100) Terrain Scanner Improved Targeting Computer Hacking Suite Drone Bay (2/2) Drone Bay (2/2) Drone Bay (2/2) Drone Bay (2/2) Drone Bay (2/2) Drone Bay (2/2) Spread Laser Light Assault Rifle Light Assault Rifle Light Cannon Datajack Plasma Cutter Peak State ------------ > --- POWER ------------ (None) > --- PROPULSION ------- Wheel Compact Wheel > --- UTILITY ---------- Huge Storage Unit Visual Processing Unit Core Shielding Drone Bay > --- WEAPON ----------- Beam Rifle Beam Rifle > --- INVENTORY -------- Improved Aluminum Leg Improved Aluminum Leg Heat Sink Heat Sink Cooling System Medium Matter Pod Terrain Scanner Improved Targeting Computer Light Armor Plating Hacking Suite Drone Bay Drone Bay Drone Bay Drone Bay Drone Bay Drone Bay Drone Bay Spread Laser Spread Laser Light Assault Rifle Shotgun Light Cannon Datajack Plasma Cutter [Rating: 21] Favorites ----------- Power Light Ion Engine Engine Light Ion Engine Propulsion Wheel Leg Improved Aluminum Leg Wheel Wheel Utility Huge Storage Unit Device Seismic Detector Storage Huge Storage Unit Processor Visual Processing Unit Protection Core Shielding Weapon Medium Laser Energy Gun Medium Laser Ballistic Gun Light Assault Rifle Special Weapon Mining Laser Special Melee Weapon Datajack Build | -11 -10 -9 -9 ------- Run | Yrd Mat Mat Sto Slots Evolved 2 | . . 2 . Power . | . . . . Propulsion . | . . . . Utility 2 | . . 2 . Weapon . | . . . . Parts Attached 39 | 7 4 17 11 Power 4 | 1 . 2 1 Engine 4 | 1 . 2 1 Core . | . . . . Reactor . | . . . . Propulsion 12 | 2 1 5 4 Treads . | . . . . Leg 2 | . . 2 . Wheel 10 | 2 1 3 4 Hover . | . . . . Flight . | . . . . Utility 12 | 2 2 5 3 Device 4 | 1 . 2 1 Storage 3 | 1 2 . . Processor 1 | . . 1 . Hackware . | . . . . Protection 4 | . . 2 2 Artifact . | . . . . Weapon 11 | 2 1 5 3 Energy Gun 6 | 2 . 2 2 Energy Cannon . | . . . . Ballistic Gun 3 | . . 2 1 Ballistic Cannon . | . . . . Launcher . | . . . . Special Weapon 1 | . 1 . . Impact Weapon . | . . . . Slashing Weapon . | . . . . Piercing Weapon . | . . . . Special Melee Weapon 1 | . . 1 . Unidentified Prototypes . | . . . . Parts Lost 23 | . 1 14 8 Power 4 | . . 3 1 Propulsion 10 | . 1 5 4 Utility 2 | . . 2 . Weapon 7 | . . 4 3 Highest Loss Streak 4 | . 1 4 2 To Critical Strikes . | . . . . Average Backups 15 | 1 9 16 22 Power . | . 1 . . Propulsion 1 | . . 1 2 Utility 6 | . 3 6 11 Weapon 4 | . 3 5 5 Tool/Special . | . . . . Unused Backups 23 | 2 . . 21 Power . | . . . . Propulsion 5 | 2 . . 3 Utility 13 | . . . 13 Weapon 3 | . . . 3 Tool/Special 2 | . . . 2 Average Slot Usage (%) 91 | . 100 84 92 Engine 7 | . 14 4 5 Leg 2 | . . 1 5 Wheel 19 | . 28 14 15 Device 10 | . 14 11 4 Storage 11 | . 14 11 11 Processor 7 | . . 11 11 Protection 8 | . . 9 17 Energy Gun 19 | . 27 13 18 Ballistic Gun 3 | . . 7 1 Peak Build Rating 21 | 7 8 15 21 Average Rating 11 | 5 7 11 16 On Entrance 7 | . 7 8 14 Naked Turns . | . . . . Heaviest Build 95 | 12 87 95 93 Greatest Support 26 | 20 20 26 26 Greatest Overweight (x) 8 | . 4 8 8 Average Overweight (x) 2 | . 1 4 3 Largest Inventory Capacity 25 | 8 25 25 25 Average Capacity 21 | 7 16 25 25 Most Carried 25 | 4 17 20 25 Average Carried 15 | 2 9 16 22 Final Capacity 25 | 8 25 25 25 Final Carried 24 | 4 17 17 24 Class Distribution -------------------- 73% | Mutant 26% | Scavenger-Mutant Dominant Class ---------------- Mutant | -10/Materials Mutant | -9/Materials Scavenger-Mutant | -9/Storage Resources | -11 -10 -9 -9 ----------- Run | Yrd Mat Mat Sto Matter Collected 805 | 270 170 176 189 Remotely . | . . . . Salvage Created 2221 | 128 372 884 837 Parts 131 | 6 32 56 37 Haulers Intercepted 2 | . 1 1 . Recyclers Shooed 7 | 1 3 1 2 Parts Field Recycled . | . . . . Retrieved Matter . | . . . . Parts Self-Destructed . | . . . . Prevented . | . . . . Kills | -11 -10 -9 -9 ------- Run | Yrd Mat Mat Sto Combat Hostiles Destroyed 45 | . 7 24 14 Guns 42 | . 7 23 12 Classes Destroyed 9 | 2 6 1 . Worker 6 | . 3 . 3 Tunneler 1 | 1 . . . Hauler 2 | . 1 1 . Recycler 7 | 1 . 3 3 Operator 3 | . 1 1 1 Watcher 4 | . 2 1 1 Swarmer 19 | . 3 13 3 Grunt 12 | . 4 5 3 Sentry 14 | . . 6 8 Best Kill Streak 6 | 2 3 6 6 Combat Bots Only 5 | . 3 5 5 Max Kills in Single Turn 2 | 1 2 2 2 Gunslinging 1 | . 1 . . Exploded . | . . . . Melee . | . . . . Uniques/NPCs Destroyed . | . . . . Combat | -11 -10 -9 -9 -------- Run | Yrd Mat Mat Sto Hostile Shots Fired 265 | . 31 172 62 Missed 73 | . 10 50 13 Hits 192 | . 21 122 49 Projectile 192 | . 21 122 49 Critical Strikes 4 | . . 3 1 Damage Taken 2150 | . 246 1272 632 Core 446 | . 45 324 77 Absorbed by Shields . | . . . . Redirected to Shielding 35 | . . 20 15 Core Remaining (%) 91 | 100 82 . . Volleys Fired 197 | 5 38 97 57 Largest 2 | 2 2 2 2 Hottest 165 | 90 140 121 165 Shots Fired 382 | 10 75 189 108 Gun 376 | 10 73 188 105 Cannon . | . . . . Launcher . | . . . . Special 6 | . 2 1 3 Kinetic 96 | . . 81 15 Thermal 286 | 10 75 108 93 Explosive . | . . . . Electromagnetic . | . . . . Robot Hit Streak 17 | 4 6 17 16 Robot Miss Streak 8 | 1 6 8 6 Penetration Max . | . . . . Secondary Targets 6 | . 3 3 . Max Gunslinging Chain 1 | . 1 1 . Shots Hit Robots 265 | 8 40 139 78 Core Hits 182 | 3 24 93 62 Critical Kills . | . . . . Critical Parts Destroyed 1 | . . 1 . Critical Strikes 8 | . 2 3 3 Burn 7 | . 2 2 3 Destroy 1 | . . 1 . Melee Attacks 1 | . . 1 . Impact . | . . . . Slashing . | . . . . Piercing . | . . . . Sneak Attacks 1 | . . 1 . Combat Hostiles . | . . . . Follow-up Attacks . | . . . . Damage Inflicted 3206 | 94 481 1489 1142 Guns 3206 | 94 481 1489 1142 Cannons . | . . . . Explosions . | . . . . Melee . | . . . . Ramming . | . . . . Kinetic 563 | . . 411 152 Thermal 2643 | 94 481 1078 990 Explosive . | . . . . Electromagnetic . | . . . . Impact . | . . . . Slashing . | . . . . Piercing . | . . . . Highest Corruption . | . . . . Average Corruption . | . . . . Corruption Purged . | . . . . Corruption Blocked . | . . . . Overload Shots . | . . . . Overflow Damage . | . . . . Projectiles . | . . . . Explosions . | . . . . Melee . | . . . . Knockbacks . | . . . . Impact . | . . . . Kinetic . | . . . . Secondary . | . . . . Self-Inflicted Damage . | . . . . Shots . | . . . . Rammed . | . . . . Targets Rammed . | . . . . Kicked . | . . . . Crushed . | . . . . Highest Temperature 289 | 150 282 289 223 Average Temperature 67 | 76 63 66 71 Received Heat Transfer 639 | . 108 297 234 Effects 3 | . 3 . . Interference 3 | . 3 . . Siege Activations . | . . . . Martial Activations . | . . . . Shielding Activations . | . . . . Robots Disrupted . | . . . . Combat Hostiles . | . . . . Robots Corrupted . | . . . . Combat Hostiles . | . . . . Parts Fried . | . . . . Impact Corruptions . | . . . . Robots Melted 3 | . . 1 2 Combat Hostiles 3 | . . 1 2 Parts Melted 11 | . . 4 7 Heat Transferred 5912 | 248 1413 1993 2258 Parts Sabotaged . | . . . . Parts Stolen . | . . . . Parts Stripped . | . . . . Power Chain Reactions . | . . . . Alert | -11 -10 -9 -9 ------- Run | Yrd Mat Mat Sto Maximum Alert Level 1 | . . 1 1 Low Security (%) 87 | 100 100 71 98 Level 1 12 | . . 28 1 Level 2 . | . . . . Level 3 . | . . . . Level 4 . | . . . . Level 5 . | . . . . High Security . | . . . . Max Security . | . . . . Peak Influence 382 | 10 77 382 211 Initial 153 | . . 3 153 Average 88 | 1 18 120 130 Influence Increases 1536 | 10 240 829 457 Destroy 0b10 Robot/C 900 | . 140 480 280 Destroy 0b10 Robot/NC 115 | 10 35 30 40 Destroy Leader 282 | . 46 124 112 Trap Triggered on 0b10 30 | . . 30 . Successful Hack 56 | . 17 30 9 Disable Machine 15 | . . . 15 Destroy Structure 3 | . 2 . 1 Lose Combat Pursuer 135 | . . 135 . Influence Decreases 1336 | 10 231 474 621 Entered New Map 217 | . . 6 211 Time Decay 852 | 10 169 363 310 Lost Part 188 | . 10 98 80 Lost Ally 20 | . . . 20 Purge Threat 59 | . 52 7 . Squads Dispatched 8 | . 4 2 2 Investigation 2 | . 2 . . Extermination . | . . . . Reinforcement 5 | . 2 2 1 Assault . | . . . . Garrison 1 | . . . 1 Intercept . | . . . . Searches Triggered . | . . . . Construction Impeded . | . . . . Haulers Reinforced . | . . . . Active Scanning Responses . | . . . . Cargo Convoy Interrupts . | . . . . Stealth | -11 -10 -9 -9 --------- Run | Yrd Mat Mat Sto Distress Signals 8 | . 1 4 3 Communications Jammed . | . . . . Distress Signals . | . . . . Times Spotted 87 | . 17 46 24 Peak Tracking Total 7 | . 3 7 4 Tactical Retreats 6 | . . 6 . Traps | -11 -10 -9 -9 ------- Run | Yrd Mat Mat Sto Traps Triggered 2 | . 2 . . Indirectly . | . . . . Trap Hack Attempts 16 | . . 11 5 Triggered . | . . . . Disarmed 1 | . . . 1 Reprogrammed 3 | . . 3 . Reused 3 | . . 3 . Traps Extracted . | . . . . Installed . | . . . . Triggered 3 | . . 3 . Machines | -11 -10 -9 -9 ---------- Run | Yrd Mat Mat Sto Machines Disabled 1 | . . . 1 Max in Single Turn 1 | . . . 1 Garrison Access 1 | . . . 1 Machines Repaired . | . . . . Machines Dismantled . | . . . . Machines Sabotaged . | . . . . Overloaded Fab Kills . | . . . . Hacking | -11 -10 -9 -9 --------- Run | Yrd Mat Mat Sto Machines Accessed 22 | . 8 7 7 Terminals 17 | . 6 6 5 Fabricators . | . . . . Repair Stations . | . . . . Recycling Units 3 | . 2 . 1 Scanalyzers 1 | . . 1 . Garrison Access 1 | . . . 1 Total Hacks 55 | . 22 17 16 Successful 34 | . 13 12 9 Failed 21 | . 9 5 7 Catastrophic 5 | . 2 1 2 Database Lockouts . | . . . . Manual 43 | . 17 13 13 Terminals 47 | . 19 15 13 Fabricators . | . . . . Repair Stations . | . . . . Recycling Units 5 | . 3 . 2 Scanalyzers 2 | . . 2 . Garrison Access 1 | . . . 1 Terminal Hacks 13 | . 5 6 2 Part Schematic 3 | . 2 1 . Open Door 1 | . . . 1 Branch Access Points 3 | . 1 1 1 Emergency Access Points 1 | . . 1 . Terminal Index 1 | . 1 . . Alert Level 1 | . . 1 . Unreport Threat 2 | . 1 1 . Locate Traps 1 | . . 1 . Fabricator Hacks . | . . . . Repair Station Hacks . | . . . . Recycling Unit Hacks 3 | . 2 . 1 Report Inventory 3 | . 2 . 1 Scanalyzer 2 | . . 2 . Insert Component 1 | . . 1 . Analyze 1 | . . 1 . Garrison Access Hacks 1 | . . . 1 Seal Access 1 | . . . 1 Unauthorized Hacks 15 | . 6 4 5 Terminals 13 | . 5 4 4 Botnet 13 | . 5 4 4 Fabricators . | . . . . Repair Stations . | . . . . Recycling Units 2 | . 1 . 1 Monitor 2 | . 1 . 1 Scanalyzers . | . . . . Garrison Access . | . . . . Data Cores Recovered . | . . . . Used . | . . . . Hacking Detections 17 | . 6 6 5 Full Trace Events 3 | . 1 2 . Feedback Events . | . . . . Feedback Blocked . | . . . . Robot Schematics Acquired . | . . . . Robots Built . | . . . . Authchips . | . . . . Time . | . . . . Total Robot Build Rating . | . . . . Part Schematics Acquired 4 | . 2 2 . Parts Built . | . . . . Authchips . | . . . . Time . | . . . . Total Part Build Rating . | . . . . Parts Repaired . | . . . . Time . | . . . . Parts Recycled . | . . . . Recycled Matter . | . . . . Retrieved Matter . | . . . . Retrieved Components . | . . . . Parts Scanalyzed 1 | . . 1 . Part Schematics Acquired 1 | . . 1 . Parts Damaged . | . . . . Bothacking | -11 -10 -9 -9 ------------ Run | Yrd Mat Mat Sto Used RIF Installer . | . . . . Robots Hacked . | . . . . Non-combat . | . . . . Combat . | . . . . Robot Hacks Applied . | . . . . Relay Couplers Released . | . . . . Fabnet Peak Effective % . | . . . . Robots Rewired . | . . . . Allies Hacked . | . . . . Hacks Repelled . | . . . . Allies | -11 -10 -9 -9 -------- Run | Yrd Mat Mat Sto Total Allies . | . . . . Largest Group . | . . . . Highest-Rated Group . | . . . . Highest-Rated Ally . | . . . . Total Orders . | . . . . Ally Attacks . | . . . . Total Damage . | . . . . Kills . | . . . . Allies Corrupted . | . . . . Allies Melted . | . . . . Intel | -11 -10 -9 -9 ------- Run | Yrd Mat Mat Sto Active Infowar (turns) 2795 | 9 852 1251 683 Optics 1934 | . . 1251 683 Terrain 712 | . . 468 244 Seismic 1641 | 9 852 780 . Robot Analysis Total . | . . . . Derelict Logs Recovered . | . . . . Drone Launches 2 | . . . 2 Drone Recoveries . | . . . . Exploration | -11 -10 -9 -9 ------------- Run | Yrd Mat Mat Sto Turns Passed 2895 | 87 874 1251 683 Spaces Moved 1487 | 71 657 496 263 Core 6 | 6 . . . Treads . | . . . . Legs 60 | . . 23 37 Wheels 1421 | 65 657 473 226 Hover . | . . . . Flight . | . . . . Fastest Speed 50 | 50 80 140 135 Average Speed 131 | 77 100 162 165 Slowest Speed 330 | 80 140 330 330 Overloaded Moves . | . . . . Propulsion Burnouts . | . . . . Robots Hopped . | . . . . Potential Cave-ins . | . . . . Cave-ins Triggered . | . . . . Exploration Rate (%) 47 | 4 85 55 46 Regions Visited 3 Branch Regions 1 Pre-discovered Areas . | . . . . Known Exits Taken 1 | . . 1 . Unknown Exits Taken 2 | 1 1 . . Scrap Searched . | . . . . Spaces Dug 2 | . 2 . . Terrain Destroyed 2 | . 2 . . Melee . | . . . . Projectile 2 | . 2 . . AOE . | . . . . Terrain Rammed . | . . . . Walls Destroyed . | . . . . Machines Disabled . | . . . . Actions | -11 -10 -9 -9 --------- Run | Yrd Mat Mat Sto Total 2042 | 90 790 765 397 Wait 232 | . 75 127 30 Move 1484 | 70 656 495 263 Hop . | . . . . Pick Up 51 | 6 13 14 18 Fast Attach 11 | 7 . 1 3 Attach 21 | . 1 15 5 Detach 1 | . . 1 . Swap 17 | . 6 3 8 Drop 11 | 2 1 . 8 Fire 197 | 5 38 97 57 Melee 1 | . . 1 . Ram . | . . . . Kick . | . . . . Crush . | . . . . Escape Stasis . | . . . . Rewire . | . . . . Trap 16 | . . 11 5 Miscellaneous . | . . . . Route ------- -11/Scrapyard -10/Materials (discovered 5 exits: *Mat x3 / *Min x2) -9/Materials (discovered 5 exits: [*Mat x2] / *Min x2 / *Sto) -9/Storage (discovered 2 exits: [*Mat] / Rec) History --------- Turn | Location | Event 2 | -11/Scrapyard | Met Revision 17 4 | -11/Scrapyard | Discovered new exit (range 16) 88 | -11/Scrapyard | Entered Materials 98 | -10/Materials | Discovered new exit (range 16) 210 | -10/Materials | Identified exit to Mines 273 | -10/Materials | Discovered new exit (range 11) 329 | -10/Materials | Build established: Mutant 497 | -10/Materials | Discovered new exit (range 16) 702 | -10/Materials | Discovered new exit (range 6) 962 | -10/Materials | Entered another Materials area 962 | -9/Materials | Evolved 2 slots: Utility x2 1499 | -9/Materials | Discovered new exit (range 18) 1591 | -9/Materials | Lost 4 parts (1p2n1u) 1636 | -9/Materials | Core integrity fell below 50% 1699 | -9/Materials | Discovered new exit (range 7) 1934 | -9/Materials | Discovered new exit (range 15) 1963 | -9/Materials | Identified exit to Mines 1963 | -9/Materials | Identified exit to Storage 2212 | -9/Materials | Core integrity fell below 20% 2213 | -9/Materials | Entered Storage 2664 | -9/Storage | Garrison activated, responded to threat 2699 | -9/Storage | Build established: Scavenger-Mutant 2752 | -9/Storage | Identified exit to Recycling 2800 | -9/Storage | Discovered new exit (range 18) 2896 | -9/Storage | Destroyed by G-34 Mercenary with Small Laser Last Messages --------------- Sml. Matter Pod (80%). 02859_ Acquired 10 matter. 02868_ R-06 Scavenger collects Lgt. Ion Engine. 02871_ Y-45 Defender destroyed. 02873_ R-06 Scavenger collects Flight Unit. 02876_ R-06 Scavenger collects Lgt. Armor Plating. 02879_ R-06 Scavenger destroyed. 02882_ >> MONITOR: Recycling Unit S002 accepting Heat Sink (86%). 02883_ Wheel destroyed. 02885_ >> MONITOR: Recycling Unit S002 accepting Sml. Laser (88%). 02886_ Critical hit (Burn: +37). 02886_ Wheel destroyed. 02888_ >> MONITOR: Recycling Unit S002 accepting Aluminum Leg (92%). 02891_ >> MONITOR: Recycling Unit S002 accepting Lgt. Ion Engine (75%). 02891_ Y-45 Defender destroyed. Map ----- +----------------------------------------------------+ | | | | | | | | | | | | | | | | | ?????????????????????????????????????????????????? | | ?????????????????????????#####???????????#####???? | | ?????????????????????????#"""#???????????#"""#???? | | ?????????????????????????#"Y"#???????????#"G"###?? | | ??????????################" "#############" "#T### | | ????????# !! # | | ????????# < %[ % # | | ????????# % ^ # | | ???????????###/#########+#########+########### # | | ?????????????????????# # #?????# # | | ?????????????????????# """ "#""" ##????# # | | ?????????????????????# r""" "#""" "#????# # | | ?????????????????????# """ "#""" T#????# # | | ?????????????????????# T# "#????# %+ | | ?????????????????????#!! """ "#""" ##????# # | | ?????????????????????#!!%""" "#""" #?????# # | | ?????????????????????#!!!""" "#""" #?????# # | | ?????????????????????#==g@%= # ?????# # | | ?????????????????????##g##+##############????# # | | ??????????????????????#%=*%#????????########?# # | | ??????????????????????# #???????# ?# # | | ??????????????????????# #???????# """ # # | | ??????????????????????# #???????# """ # # | | ?????????????????????? #??????# """ + # | | ????????????????????? #???????# !! """ # # | | ???????????????????? #???????# !! """ # # | | ??????????????????? #???????# ! ?# # | | ?????????????????? +???????? ?# # | | ????????????????? ########+#?????????#######?# # | | ???????????????? ???????????????##### #"T"### # | | ???????????????? ????????????????# # # | | ??????????????? ?????????????????# # # | | ?????????????????????????????????# # # | | ?????????????????????????????????# + # | | ?????????????????????????????????# """ """ # # | | ?????????????????????????????????# """ """ # # | | ?????????????????????????????????# """ """ # # | | ?????????????????????????????????############# # | | ?????????????????????????????????????######T# | | ?????????????????????????????????????# !# # | | ?????????????????????????????????????#! !=% + T | | ?????????????????????????????????????# |/# # | +----------------------------------------------------+ Best States ------------- Heat Dissipation 28 Energy Generation 12 Energy Capacity 265 Matter Stores 300 Matter Capacity 300 Sight Range 18 Terrain Scan Range 14 Terrain Scan Density 10 Armor Coverage 150 Core Shielding 20 Evasion (%) 44 Item Schematics ----------------- Datajack | -10/Materials | Hacked Sensor Array | -10/Materials | Hacked Core Shielding | -9/Materials | Scanalyzed Arm. Wheel | -9/Materials | Hacked Robot Schematics ------------------ None Fabricated ------------ Nothing Repaired ---------- Nothing Alien Tech Used ----------------- None Achievements -------------- None Challenges ------------ None Game ------ Seed EnergyOpticalOptics Manual? 0 Play Time 00:34:25 Cumulative 63.5 hours Start 2025.08.14 @ 16:49:28 End 2025.08.14 @ 17:28:17 Sessions 1 Manual Loads 0 Difficulty Rogue Special Mode None Game No. 40 Rogue 36 Adventurer 4 Explorer 0 Win Type - Total 0 Types 0/0/0/0/0/0/0/0/0/0 Lore% 41 Gallery% 39 Achievement% 36 Wizard Run 0 Options --------- Layout 1 ASCII 0 Keyboard 0 Movement Numpad Keybinds 1 Fullscreen 1 Font 24/Smallcaps Map View 50x35 Zoom Use 0% Tactical HUD 1 Map Filters NONE Filters NONE Steam 1 RUN: 4400d730-de71-45f1-aca9-7b0b89ead3d7